[Event "Titled Tuesday Blitz June 13 Late 2023"]
[White "Zhou, Qiyu"]
[Black "Martins, Vinicius Tine"]
[WhiteFideId "505161"]
[BlackFideId "2112884"]
[WhiteElo "2101"]
[BlackElo "2373"]
[Result "1-0"]
[Round "11"]
[TimeControl "180+2"]
[Date "2023.06.13"]
[WhiteClock "0:01:08"]
[BlackClock "0:01:18"]
[Board "64"]

1. e4 {[%clk 0:03:00]}  c5 {[%clk 0:02:56]} 2. Nf3 {[%clk 0:02:58]}  d6 {[%clk 0:02:52]} 3. d4 {[%clk 0:02:57]}  cxd4 {[%clk 0:02:53]} 4. Nxd4 {[%clk 0:02:57]}  Nf6 {[%clk 0:02:53]} 5. Nc3 {[%clk 0:02:58]}  g6 {[%clk 0:02:54]} 6. Be3 {[%clk 0:02:57]}  Bg7 {[%clk 0:02:54]} 7. f3 {[%clk 0:02:57]}  O-O {[%clk 0:02:54]} 8. Qd2 {[%clk 0:02:56]}  Nc6 {[%clk 0:02:55]} 9. O-O-O {[%clk 0:02:54]}  Nxd4 {[%clk 0:02:51]} 10. Bxd4 {[%clk 0:02:54]}  Be6 {[%clk 0:02:52]} 11. Kb1 {[%clk 0:02:53]}  Re8 {[%clk 0:02:51]} 12. g4 {[%clk 0:02:51]}  Qa5 {[%clk 0:02:50]} 13. h4 {[%clk 0:02:18]}  Rab8 {[%clk 0:02:44]} 14. g5 {[%clk 0:02:13]}  Nh5 {[%clk 0:02:42]} 15. Bxg7 {[%clk 0:02:14]}  Kxg7 {[%clk 0:02:38]} 16. Bh3 {[%clk 0:02:11]}  Bxh3 {[%clk 0:02:27]} 17. Rxh3 {[%clk 0:02:12]}  Qe5 {[%clk 0:02:21]} 18. Nd5 {[%clk 0:01:53]}  Rbc8 {[%clk 0:02:10]} 19. Rhh1 {[%clk 0:01:46]}  e6 {[%clk 0:02:06]} 20. Ne3 {[%clk 0:01:46]}  Rc6 {[%clk 0:02:03]} 21. Ng4 {[%clk 0:01:43]}  Qf4 {[%clk 0:01:57]} 22. Qd4+ {[%clk 0:01:30]}  e5 {[%clk 0:01:52]} 23. Qd3 {[%clk 0:01:27]}  Rec8 {[%clk 0:01:43]} 24. c3 {[%clk 0:01:19]}  a6 {[%clk 0:01:42]} 25. Ne3 {[%clk 0:01:09]}  Qxf3 {[%clk 0:01:18]} 26. Nf5+ {[%clk 0:01:08]} 1-0


[Site "https://www.chess.com"]

[Event "Titled Tuesday Blitz June 13 Late 2023"]
[White "Arnold, Ken"]
[Black "Novikov, Evgenij"]
[WhiteFideId "2056836"]
[BlackFideId "4125380"]
[WhiteElo "2441"]
[BlackElo "2242"]
[Result "0-1"]
[Round "11"]
[TimeControl "180+2"]
[Date "2023.06.13"]
[WhiteClock "0:00:35"]
[BlackClock "0:00:57"]
[Board "72"]

1. d4 {[%clk 0:03:00]}  Nf6 {[%clk 0:02:57]} 2. Nf3 {[%clk 0:03:00]}  d5 {[%clk 0:02:55]} 3. g3 {[%clk 0:03:00]}  Bg4 {[%clk 0:02:54]} 4. Bg2 {[%clk 0:03:00]}  Bxf3 {[%clk 0:02:54]} 5. exf3 {[%clk 0:02:59]}  c6 {[%clk 0:02:54]} 6. O-O {[%clk 0:02:59]}  e6 {[%clk 0:02:54]} 7. f4 {[%clk 0:03:00]}  g6 {[%clk 0:02:55]} 8. b3 {[%clk 0:02:58]}  Bg7 {[%clk 0:02:55]} 9. Ba3 {[%clk 0:02:58]}  Bf8 {[%clk 0:02:55]} 10. Bb2 {[%clk 0:02:57]}  Bd6 {[%clk 0:02:54]} 11. Nd2 {[%clk 0:02:55]}  O-O {[%clk 0:02:54]} 12. Re1 {[%clk 0:02:54]}  a5 {[%clk 0:02:54]} 13. a4 {[%clk 0:02:54]}  Nbd7 {[%clk 0:02:53]} 14. Qf3 {[%clk 0:02:53]}  Qb8 {[%clk 0:02:51]} 15. c4 {[%clk 0:02:52]}  Bb4 {[%clk 0:02:50]} 16. Bc3 {[%clk 0:02:47]}  Bxc3 {[%clk 0:02:50]} 17. Qxc3 {[%clk 0:02:46]}  Rc8 {[%clk 0:02:49]} 18. b4 {[%clk 0:02:40]}  axb4 {[%clk 0:02:48]} 19. Qxb4 {[%clk 0:02:39]}  Qa7 {[%clk 0:02:49]} 20. c5 {[%clk 0:02:38]}  b6 {[%clk 0:02:47]} 21. cxb6 {[%clk 0:02:36]}  Qxb6 {[%clk 0:02:47]} 22. Qc3 {[%clk 0:02:32]}  c5 {[%clk 0:02:43]} 23. Reb1 {[%clk 0:02:31]}  Qd6 {[%clk 0:02:37]} 24. Qa3 {[%clk 0:02:27]}  Qa6 {[%clk 0:02:32]} 25. Bf1 {[%clk 0:02:24]}  Qa7 {[%clk 0:02:29]} 26. dxc5 {[%clk 0:02:21]}  Nxc5 {[%clk 0:02:30]} 27. a5 {[%clk 0:02:18]}  Nfe4 {[%clk 0:02:28]} 28. Nxe4 {[%clk 0:02:15]}  Nxe4 {[%clk 0:02:29]} 29. Qe3 {[%clk 0:02:02]}  Qxe3 {[%clk 0:01:43]} 30. fxe3 {[%clk 0:02:01]}  Ra7 {[%clk 0:01:44]} 31. Bg2 {[%clk 0:01:54]}  Nd2 {[%clk 0:01:40]} 32. Rb2 {[%clk 0:01:41]}  Nc4 {[%clk 0:01:40]} 33. Rba2 {[%clk 0:01:40]}  Nxe3 {[%clk 0:01:37]} 34. a6 {[%clk 0:01:32]}  Rc6 {[%clk 0:01:27]} 35. Bf3 {[%clk 0:01:28]}  Kf8 {[%clk 0:01:24]} 36. Kf2 {[%clk 0:01:27]}  Nc4 {[%clk 0:01:24]} 37. Be2 {[%clk 0:01:25]}  Nd6 {[%clk 0:01:21]} 38. Rb2 {[%clk 0:01:22]}  Ke7 {[%clk 0:01:19]} 39. Rab1 {[%clk 0:01:20]}  Rcc7 {[%clk 0:01:14]} 40. Bd3 {[%clk 0:01:13]}  f6 {[%clk 0:01:14]} 41. h4 {[%clk 0:01:12]}  e5 {[%clk 0:01:14]} 42. fxe5 {[%clk 0:01:10]}  fxe5 {[%clk 0:01:15]} 43. Be2 {[%clk 0:01:06]}  Ke6 {[%clk 0:01:15]} 44. Rb6 {[%clk 0:01:04]}  e4 {[%clk 0:01:11]} 45. h5 {[%clk 0:01:00]}  Ke5 {[%clk 0:01:09]} 46. hxg6 {[%clk 0:01:00]}  hxg6 {[%clk 0:01:10]} 47. Rh1 {[%clk 0:00:59]}  Rf7+ {[%clk 0:01:07]} 48. Ke1 {[%clk 0:00:57]}  d4 {[%clk 0:01:04]} 49. Rh6 {[%clk 0:00:56]}  Rf6 {[%clk 0:00:59]} 50. Rh7 {[%clk 0:00:35]}  Rxh7 {[%clk 0:00:57]} 0-1


[Site "https://www.chess.com"]

[Event "Titled Tuesday Blitz June 13 Late 2023"]
[White "liwadas82"]
[Black "Diaz Rosas, Julio Cesar"]
[BlackFideId "5105099"]
[WhiteElo "2423"]
[BlackElo "2284"]
[Result "1-0"]
[Round "11"]
[TimeControl "180+2"]
[Date "2023.06.13"]
[WhiteClock "0:00:26"]
[BlackClock "0:00:00"]
[Board "73"]

1. e4 {[%clk 0:03:00]}  c5 {[%clk 0:02:56]} 2. Nf3 {[%clk 0:03:01]}  d6 {[%clk 0:02:55]} 3. d4 {[%clk 0:03:01]}  cxd4 {[%clk 0:02:56]} 4. Nxd4 {[%clk 0:03:02]}  Nf6 {[%clk 0:02:56]} 5. Nc3 {[%clk 0:03:02]}  a6 {[%clk 0:02:56]} 6. Be3 {[%clk 0:03:02]}  e5 {[%clk 0:02:56]} 7. Nb3 {[%clk 0:03:03]}  Be7 {[%clk 0:02:56]} 8. f3 {[%clk 0:03:04]}  O-O {[%clk 0:02:57]} 9. Qd2 {[%clk 0:03:04]}  a5 {[%clk 0:02:58]} 10. Bb5 {[%clk 0:03:04]}  Na6 {[%clk 0:02:55]} 11. O-O-O {[%clk 0:03:02]}  Be6 {[%clk 0:02:53]} 12. g4 {[%clk 0:03:01]}  Nc7 {[%clk 0:02:46]} 13. g5 {[%clk 0:03:01]}  Nh5 {[%clk 0:02:46]} 14. a4 {[%clk 0:02:47]}  Qc8 {[%clk 0:02:32]} 15. Kb1 {[%clk 0:02:43]}  Na6 {[%clk 0:02:02]} 16. Nd5 {[%clk 0:02:39]}  Bxd5 {[%clk 0:01:58]} 17. Qxd5 {[%clk 0:02:32]}  Nb4 {[%clk 0:01:57]} 18. Qd2 {[%clk 0:02:30]}  Qe6 {[%clk 0:01:44]} 19. Nc1 {[%clk 0:02:02]}  Rfc8 {[%clk 0:01:40]} 20. c3 {[%clk 0:02:02]}  Na6 {[%clk 0:01:32]} 21. Qd5 {[%clk 0:02:00]}  Qxd5 {[%clk 0:01:22]} 22. exd5 {[%clk 0:01:59]}  f5 {[%clk 0:01:04]} 23. Bd7 {[%clk 0:01:57]}  Rf8 {[%clk 0:01:02]} 24. Ne2 {[%clk 0:01:50]}  f4 {[%clk 0:00:58]} 25. Bb6 {[%clk 0:01:48]}  Bxg5 {[%clk 0:00:55]} 26. Be6+ {[%clk 0:01:45]}  Kh8 {[%clk 0:00:54]} 27. Bxa5 {[%clk 0:01:41]}  Nc5 {[%clk 0:00:50]} 28. Bc7 {[%clk 0:01:41]}  Be7 {[%clk 0:00:48]} 29. a5 {[%clk 0:01:36]}  Nb3 {[%clk 0:00:42]} 30. Kc2 {[%clk 0:01:36]}  Nxa5 {[%clk 0:00:37]} 31. b3 {[%clk 0:01:30]}  b6 {[%clk 0:00:27]} 32. Bxb6 {[%clk 0:01:29]}  Rfb8 {[%clk 0:00:26]} 33. Bxa5 {[%clk 0:01:29]}  Rxa5 {[%clk 0:00:26]} 34. Ra1 {[%clk 0:01:28]}  Rab5 {[%clk 0:00:24]} 35. b4 {[%clk 0:01:28]}  Nf6 {[%clk 0:00:23]} 36. Ra7 {[%clk 0:01:25]}  Bd8 {[%clk 0:00:19]} 37. Rd1 {[%clk 0:01:17]}  Bb6 {[%clk 0:00:17]} 38. Ra6 {[%clk 0:01:17]}  Bc7 {[%clk 0:00:16]} 39. Rc6 {[%clk 0:01:16]}  R5b7 {[%clk 0:00:15]} 40. b5 {[%clk 0:01:04]}  g5 {[%clk 0:00:14]} 41. c4 {[%clk 0:01:03]}  Kg7 {[%clk 0:00:14]} 42. Nc3 {[%clk 0:00:52]}  Ra7 {[%clk 0:00:13]} 43. Kb3 {[%clk 0:00:50]}  Kf8 {[%clk 0:00:11]} 44. Rd2 {[%clk 0:00:47]}  Ke7 {[%clk 0:00:10]} 45. Ra2 {[%clk 0:00:47]}  Rxa2 {[%clk 0:00:10]} 46. Nxa2 {[%clk 0:00:47]}  Ba5 {[%clk 0:00:09]} 47. Ra6 {[%clk 0:00:46]}  Bb6 {[%clk 0:00:08]} 48. Nb4 {[%clk 0:00:45]}  Rb7 {[%clk 0:00:08]} 49. Nc6+ {[%clk 0:00:44]}  Kf8 {[%clk 0:00:08]} 50. Ra8+ {[%clk 0:00:44]}  Kg7 {[%clk 0:00:08]} 51. Rc8 {[%clk 0:00:38]}  g4 {[%clk 0:00:05]} 52. Bxg4 {[%clk 0:00:36]}  Nxg4 {[%clk 0:00:05]} 53. fxg4 {[%clk 0:00:37]}  f3 {[%clk 0:00:05]} 54. Ra8 {[%clk 0:00:29]}  f2 {[%clk 0:00:05]} 55. Ra1 {[%clk 0:00:29]}  e4 {[%clk 0:00:00]} 56. Kc2 {[%clk 0:00:26]} 1-0


[Site "https://www.chess.com"]

[Event "Titled Tuesday Blitz June 13 Late 2023"]
[White "Yurasova, Daria"]
[Black "Korpics, Zsolt"]
[WhiteFideId "34146919"]
[BlackFideId "705241"]
[WhiteElo "2109"]
[BlackElo "2341"]
[Result "0-1"]
[Round "11"]
[TimeControl "180+2"]
[Date "2023.06.13"]
[WhiteClock "0:00:13"]
[BlackClock "0:00:10"]
[Board "79"]

1. e4 {[%clk 0:03:00]}  c5 {[%clk 0:02:59]} 2. Nf3 {[%clk 0:03:00]}  e6 {[%clk 0:02:59]} 3. d3 {[%clk 0:02:57]}  Nc6 {[%clk 0:02:56]} 4. Be2 {[%clk 0:02:57]}  Nf6 {[%clk 0:02:49]} 5. O-O {[%clk 0:02:57]}  d5 {[%clk 0:02:49]} 6. exd5 {[%clk 0:02:55]}  exd5 {[%clk 0:02:49]} 7. c4 {[%clk 0:02:54]}  dxc4 {[%clk 0:02:33]} 8. dxc4 {[%clk 0:02:54]}  Qc7 {[%clk 0:02:33]} 9. Nc3 {[%clk 0:02:53]}  Be7 {[%clk 0:02:10]} 10. Nb5 {[%clk 0:02:26]}  Qb8 {[%clk 0:02:07]} 11. Be3 {[%clk 0:02:24]}  O-O {[%clk 0:02:01]} 12. a3 {[%clk 0:02:18]}  a6 {[%clk 0:01:57]} 13. Nc3 {[%clk 0:02:18]}  Rd8 {[%clk 0:01:57]} 14. Qc2 {[%clk 0:02:18]}  Nd4 {[%clk 0:01:53]} 15. Bxd4 {[%clk 0:02:05]}  cxd4 {[%clk 0:01:53]} 16. Ne4 {[%clk 0:02:03]}  Qf4 {[%clk 0:01:48]} 17. Nxf6+ {[%clk 0:02:00]}  Bxf6 {[%clk 0:01:48]} 18. Bd3 {[%clk 0:02:01]}  h5 {[%clk 0:01:36]} 19. Rae1 {[%clk 0:01:59]}  Be6 {[%clk 0:01:11]} 20. Re4 {[%clk 0:01:55]}  Qh6 {[%clk 0:01:11]} 21. Rfe1 {[%clk 0:01:37]}  Rac8 {[%clk 0:01:09]} 22. c5 {[%clk 0:01:29]}  Bd5 {[%clk 0:01:06]} 23. R4e2 {[%clk 0:01:12]}  Bxf3 {[%clk 0:00:57]} 24. gxf3 {[%clk 0:01:13]}  Qf4 {[%clk 0:00:47]} 25. Be4 {[%clk 0:00:55]}  b6 {[%clk 0:00:38]} 26. c6 {[%clk 0:00:52]}  Kh8 {[%clk 0:00:30]} 27. Qd2 {[%clk 0:00:50]}  Qh4 {[%clk 0:00:28]} 28. f4 {[%clk 0:00:45]}  d3 {[%clk 0:00:23]} 29. Bxd3 {[%clk 0:00:35]}  Qg4+ {[%clk 0:00:23]} 30. Kh1 {[%clk 0:00:35]}  Qf3+ {[%clk 0:00:23]} 31. Kg1 {[%clk 0:00:35]}  Rxd3 {[%clk 0:00:17]} 32. Re8+ {[%clk 0:00:34]}  Rxe8 {[%clk 0:00:16]} 33. Rxe8+ {[%clk 0:00:35]}  Kh7 {[%clk 0:00:17]} 34. Qc2 {[%clk 0:00:32]}  g6 {[%clk 0:00:17]} 35. Re1 {[%clk 0:00:25]}  Rd8 {[%clk 0:00:16]} 36. c7 {[%clk 0:00:24]}  Rc8 {[%clk 0:00:16]} 37. Qc4 {[%clk 0:00:21]}  Qg4+ {[%clk 0:00:13]} 38. Kh1 {[%clk 0:00:20]}  Kg7 {[%clk 0:00:12]} 39. Rc1 {[%clk 0:00:20]}  Qf3+ {[%clk 0:00:11]} 40. Kg1 {[%clk 0:00:20]}  Qb7 {[%clk 0:00:05]} 41. f5 {[%clk 0:00:18]}  g5 {[%clk 0:00:04]} 42. h4 {[%clk 0:00:17]}  g4 {[%clk 0:00:03]} 43. b4 {[%clk 0:00:15]}  b5 {[%clk 0:00:03]} 44. Qc5 {[%clk 0:00:14]}  Bxh4 {[%clk 0:00:03]} 45. f6+ {[%clk 0:00:11]}  Bxf6 {[%clk 0:00:04]} 46. Qxh5 {[%clk 0:00:12]}  Rxc7 {[%clk 0:00:04]} 47. Qxg4+ {[%clk 0:00:12]}  Kf8 {[%clk 0:00:03]} 48. Re1 {[%clk 0:00:13]}  Re7 {[%clk 0:00:03]} 49. Rd1 {[%clk 0:00:13]}  Re8 {[%clk 0:00:02]} 50. Qf5 {[%clk 0:00:12]}  Qe7 {[%clk 0:00:02]} 51. Qd5 {[%clk 0:00:10]}  Qe6 {[%clk 0:00:02]} 52. Qf3 {[%clk 0:00:09]}  Ke7 {[%clk 0:00:02]} 53. Rc1 {[%clk 0:00:09]}  Kf8 {[%clk 0:00:03]} 54. Rd1 {[%clk 0:00:09]}  Bg7 {[%clk 0:00:02]} 55. Kf1 {[%clk 0:00:08]}  Kg8 {[%clk 0:00:02]} 56. Kg1 {[%clk 0:00:07]}  Qc4 {[%clk 0:00:03]} 57. Rd7 {[%clk 0:00:05]}  Qe6 {[%clk 0:00:03]} 58. Rd1 {[%clk 0:00:04]}  Qg6+ {[%clk 0:00:03]} 59. Kf1 {[%clk 0:00:05]}  Re6 {[%clk 0:00:03]} 60. Rd8+ {[%clk 0:00:04]}  Bf8 {[%clk 0:00:04]} 61. Rd1 {[%clk 0:00:04]}  Qf6 {[%clk 0:00:04]} 62. Qg3+ {[%clk 0:00:04]}  Qg6 {[%clk 0:00:05]} 63. Qf3 {[%clk 0:00:04]}  Rf6 {[%clk 0:00:05]} 64. Qe3 {[%clk 0:00:04]}  Qh5 {[%clk 0:00:05]} 65. Rd4 {[%clk 0:00:04]}  Qh1+ {[%clk 0:00:05]} 66. Ke2 {[%clk 0:00:05]}  Qh5+ {[%clk 0:00:06]} 67. Kd3 {[%clk 0:00:05]}  Qg6+ {[%clk 0:00:05]} 68. Kc3 {[%clk 0:00:05]}  Rc6+ {[%clk 0:00:05]} 69. Kd2 {[%clk 0:00:04]}  Qc2+ {[%clk 0:00:05]} 70. Ke1 {[%clk 0:00:04]}  Qc1+ {[%clk 0:00:06]} 71. Qxc1 {[%clk 0:00:04]}  Rxc1+ {[%clk 0:00:07]} 72. Kd2 {[%clk 0:00:05]}  Rc6 {[%clk 0:00:06]} 73. Rg4+ {[%clk 0:00:04]}  Bg7 {[%clk 0:00:06]} 74. Re4 {[%clk 0:00:04]}  Kf8 {[%clk 0:00:06]} 75. f4 {[%clk 0:00:04]}  Bf6 {[%clk 0:00:06]} 76. f5 {[%clk 0:00:04]}  Rd6+ {[%clk 0:00:06]} 77. Kc2 {[%clk 0:00:04]}  Rc6+ {[%clk 0:00:07]} 78. Kd2 {[%clk 0:00:03]}  Rc3 {[%clk 0:00:07]} 79. Rg4 {[%clk 0:00:02]}  Rxa3 {[%clk 0:00:07]} 80. Kc2 {[%clk 0:00:01]}  Ra4 {[%clk 0:00:07]} 81. Kb1 {[%clk 0:00:02]}  Be7 {[%clk 0:00:06]} 82. Kc2 {[%clk 0:00:02]}  Rxb4 {[%clk 0:00:07]} 83. Rg1 {[%clk 0:00:03]}  Rc4+ {[%clk 0:00:06]} 84. Kb3 {[%clk 0:00:03]}  Rc5 {[%clk 0:00:07]} 85. Rd1 {[%clk 0:00:04]}  Rxf5 {[%clk 0:00:07]} 86. Rd7 {[%clk 0:00:04]}  Bf6 {[%clk 0:00:06]} 87. Rb7 {[%clk 0:00:05]}  a5 {[%clk 0:00:06]} 88. Ra7 {[%clk 0:00:04]}  a4+ {[%clk 0:00:06]} 89. Kb4 {[%clk 0:00:05]}  Be7+ {[%clk 0:00:05]} 90. Ka5 {[%clk 0:00:04]}  a3 {[%clk 0:00:05]} 91. Kb6 {[%clk 0:00:03]}  b4 {[%clk 0:00:05]} 92. Ra8+ {[%clk 0:00:03]}  Kg7 {[%clk 0:00:05]} 93. Kc6 {[%clk 0:00:04]}  Bf6 {[%clk 0:00:05]} 94. Kd7 {[%clk 0:00:05]}  b3 {[%clk 0:00:06]} 95. Rxa3 {[%clk 0:00:05]}  b2 {[%clk 0:00:06]} 96. Rb3 {[%clk 0:00:05]}  Rf1 {[%clk 0:00:06]} 97. Rxb2 {[%clk 0:00:05]}  Bxb2 {[%clk 0:00:07]} 98. Ke8 {[%clk 0:00:06]}  Bf6 {[%clk 0:00:07]} 99. Kd7 {[%clk 0:00:07]}  Bg5 {[%clk 0:00:08]} 100. Kc6 {[%clk 0:00:07]}  f5 {[%clk 0:00:09]} 101. Kd5 {[%clk 0:00:08]}  f4 {[%clk 0:00:09]} 102. Kc4 {[%clk 0:00:09]}  f3 {[%clk 0:00:10]} 103. Kd4 {[%clk 0:00:10]}  f2 {[%clk 0:00:10]} 104. Ke5 {[%clk 0:00:11]}  Re1+ {[%clk 0:00:10]} 105. Kd5 {[%clk 0:00:11]}  f1=Q {[%clk 0:00:10]} 106. Kc5 {[%clk 0:00:12]}  Rc1+ {[%clk 0:00:10]} 107. Kd6 {[%clk 0:00:12]}  Qd3+ {[%clk 0:00:10]} 108. Ke5 {[%clk 0:00:13]}  Re1# {[%clk 0:00:10]} 0-1


[Site "https://www.chess.com"]

[Event "Titled Tuesday Blitz June 13 Late 2023"]
[White "Zaitsev, Alexander"]
[Black "kiwibobo"]
[WhiteFideId "4164490"]
[WhiteElo "2373"]
[BlackElo "2321"]
[Result "1/2-1/2"]
[Round "11"]
[TimeControl "180+2"]
[Date "2023.06.13"]
[WhiteClock "0:00:07"]
[BlackClock "0:00:05"]
[Board "80"]

1. e4 {[%clk 0:02:56]}  e5 {[%clk 0:03:00]} 2. Nc3 {[%clk 0:02:55]}  Nf6 {[%clk 0:02:59]} 3. Bc4 {[%clk 0:02:56]}  Nc6 {[%clk 0:02:59]} 4. d3 {[%clk 0:02:56]}  Bc5 {[%clk 0:02:58]} 5. f4 {[%clk 0:02:55]}  O-O {[%clk 0:02:52]} 6. Nf3 {[%clk 0:02:55]}  exf4 {[%clk 0:02:50]} 7. Bxf4 {[%clk 0:02:53]}  d6 {[%clk 0:02:50]} 8. Na4 {[%clk 0:02:40]}  Bb6 {[%clk 0:02:27]} 9. Nxb6 {[%clk 0:02:40]}  axb6 {[%clk 0:02:28]} 10. Bg5 {[%clk 0:01:51]}  Be6 {[%clk 0:02:24]} 11. Bb5 {[%clk 0:01:33]}  h6 {[%clk 0:02:14]} 12. Bh4 {[%clk 0:01:32]}  Ne5 {[%clk 0:02:05]} 13. d4 {[%clk 0:01:12]}  Nxf3+ {[%clk 0:02:00]} 14. Qxf3 {[%clk 0:01:13]}  g5 {[%clk 0:01:47]} 15. Bg3 {[%clk 0:01:09]}  Bg4 {[%clk 0:01:45]} 16. Qe3 {[%clk 0:00:56]}  Qe7 {[%clk 0:01:38]} 17. h3 {[%clk 0:00:40]}  Qxe4 {[%clk 0:01:22]} 18. Qxe4 {[%clk 0:00:28]}  Nxe4 {[%clk 0:01:23]} 19. hxg4 {[%clk 0:00:28]}  Nxg3 {[%clk 0:01:23]} 20. Rxh6 {[%clk 0:00:29]}  Kg7 {[%clk 0:01:17]} 21. Rh3 {[%clk 0:00:28]}  Ne4 {[%clk 0:01:04]} 22. a3 {[%clk 0:00:17]}  Rh8 {[%clk 0:01:04]} 23. Ke2 {[%clk 0:00:16]}  Nf6 {[%clk 0:00:56]} 24. Kf3 {[%clk 0:00:16]}  d5 {[%clk 0:00:48]} 25. Re1 {[%clk 0:00:15]}  c6 {[%clk 0:00:45]} 26. Bd3 {[%clk 0:00:14]}  Rae8 {[%clk 0:00:43]} 27. Rxh8 {[%clk 0:00:13]}  Rxe1 {[%clk 0:00:35]} 28. Rb8 {[%clk 0:00:14]}  Re7 {[%clk 0:00:30]} 29. Bf5 {[%clk 0:00:14]}  Ne8 {[%clk 0:00:23]} 30. b3 {[%clk 0:00:08]}  Nd6 {[%clk 0:00:23]} 31. Rd8 {[%clk 0:00:08]}  Nxf5 {[%clk 0:00:21]} 32. gxf5 {[%clk 0:00:09]}  Kf6 {[%clk 0:00:21]} 33. g4 {[%clk 0:00:09]}  Re4 {[%clk 0:00:20]} 34. c3 {[%clk 0:00:10]}  Re1 {[%clk 0:00:17]} 35. Rd7 {[%clk 0:00:09]}  Rc1 {[%clk 0:00:17]} 36. Rxb7 {[%clk 0:00:05]}  Rxc3+ {[%clk 0:00:18]} 37. Kf2 {[%clk 0:00:05]}  Rxb3 {[%clk 0:00:19]} 38. a4 {[%clk 0:00:06]}  Rb4 {[%clk 0:00:18]} 39. Rc7 {[%clk 0:00:05]}  Rxa4 {[%clk 0:00:16]} 40. Rxc6+ {[%clk 0:00:05]}  Kg7 {[%clk 0:00:16]} 41. Rxb6 {[%clk 0:00:06]}  Rxd4 {[%clk 0:00:16]} 42. Kg3 {[%clk 0:00:04]}  Rd3+ {[%clk 0:00:15]} 43. Kg2 {[%clk 0:00:04]}  d4 {[%clk 0:00:15]} 44. Rd6 {[%clk 0:00:05]}  Rd2+ {[%clk 0:00:15]} 45. Kf3 {[%clk 0:00:05]}  d3 {[%clk 0:00:08]} 46. Ke3 {[%clk 0:00:05]}  Rg2 {[%clk 0:00:09]} 47. Kf3 {[%clk 0:00:06]}  Rd2 {[%clk 0:00:07]} 48. Ke3 {[%clk 0:00:06]}  Rg2 {[%clk 0:00:04]} 49. Kf3 {[%clk 0:00:07]}  Rd2 {[%clk 0:00:05]} 1/2-1/2


[Site "https://www.chess.com"]

[Event "Titled Tuesday Blitz June 13 Late 2023"]
[White "Romanchuk, Viktor"]
[Black "Sala, Giulia"]
[WhiteFideId "14109271"]
[BlackFideId "2840451"]
[WhiteElo "2242"]
[BlackElo "1769"]
[Result "1-0"]
[Round "11"]
[TimeControl "180+2"]
[Date "2023.06.13"]
[WhiteClock "0:00:10"]
[BlackClock "0:00:11"]
[Board "82"]

1. d4 {[%clk 0:02:59]}  e6 {[%clk 0:03:00]} 2. c4 {[%clk 0:02:58]}  Nf6 {[%clk 0:03:00]} 3. Nc3 {[%clk 0:02:57]}  d5 {[%clk 0:03:00]} 4. Nf3 {[%clk 0:02:57]}  Be7 {[%clk 0:02:59]} 5. Bf4 {[%clk 0:02:56]}  O-O {[%clk 0:02:58]} 6. e3 {[%clk 0:02:57]}  b6 {[%clk 0:02:58]} 7. cxd5 {[%clk 0:02:55]}  Nxd5 {[%clk 0:02:59]} 8. Nxd5 {[%clk 0:02:54]}  Qxd5 {[%clk 0:03:00]} 9. Be2 {[%clk 0:02:53]}  Bb4+ {[%clk 0:02:59]} 10. Nd2 {[%clk 0:02:28]}  Qxg2 {[%clk 0:02:59]} 11. Bf3 {[%clk 0:02:20]}  Bxd2+ {[%clk 0:02:59]} 12. Kxd2 {[%clk 0:02:21]}  Qxf2+ {[%clk 0:02:59]} 13. Kc3 {[%clk 0:02:19]}  c6 {[%clk 0:02:55]} 14. h4 {[%clk 0:02:18]}  Ba6 {[%clk 0:02:50]} 15. Rh2 {[%clk 0:02:09]}  Qf1 {[%clk 0:02:46]} 16. Qxf1 {[%clk 0:02:07]}  Bxf1 {[%clk 0:02:47]} 17. Rxf1 {[%clk 0:02:07]}  Nd7 {[%clk 0:02:48]} 18. h5 {[%clk 0:01:54]}  Rac8 {[%clk 0:02:44]} 19. Kc2 {[%clk 0:01:41]}  c5 {[%clk 0:02:41]} 20. dxc5 {[%clk 0:01:41]}  Nxc5 {[%clk 0:02:37]} 21. Kb1 {[%clk 0:01:40]}  Nd3 {[%clk 0:02:35]} 22. Rd2 {[%clk 0:01:36]}  Nc5 {[%clk 0:02:28]} 23. Rg1 {[%clk 0:01:28]}  f6 {[%clk 0:02:24]} 24. Bd6 {[%clk 0:00:56]}  Rfd8 {[%clk 0:02:20]} 25. Rgd1 {[%clk 0:00:53]}  g5 {[%clk 0:01:39]} 26. hxg6 {[%clk 0:00:49]}  hxg6 {[%clk 0:01:38]} 27. Be7 {[%clk 0:00:31]}  Rxd2 {[%clk 0:01:35]} 28. Rxd2 {[%clk 0:00:32]}  Kf7 {[%clk 0:01:35]} 29. Bxc5 {[%clk 0:00:30]}  Rxc5 {[%clk 0:01:29]} 30. Rd7+ {[%clk 0:00:30]}  Kf8 {[%clk 0:01:30]} 31. Rxa7 {[%clk 0:00:29]}  Rf5 {[%clk 0:01:25]} 32. Be2 {[%clk 0:00:22]}  Re5 {[%clk 0:01:23]} 33. Ra3 {[%clk 0:00:21]}  g5 {[%clk 0:01:20]} 34. Kc2 {[%clk 0:00:21]}  f5 {[%clk 0:01:21]} 35. Kd2 {[%clk 0:00:20]}  g4 {[%clk 0:01:19]} 36. Ke1 {[%clk 0:00:20]}  Ke7 {[%clk 0:01:19]} 37. Kf2 {[%clk 0:00:20]}  Kf6 {[%clk 0:01:19]} 38. Rb3 {[%clk 0:00:21]}  Rc5 {[%clk 0:01:09]} 39. Rxb6 {[%clk 0:00:18]}  Rc2 {[%clk 0:01:10]} 40. a4 {[%clk 0:00:18]}  g3+ {[%clk 0:01:10]} 41. Kxg3 {[%clk 0:00:17]}  Rxe2 {[%clk 0:01:10]} 42. Kf3 {[%clk 0:00:18]}  Re1 {[%clk 0:01:10]} 43. a5 {[%clk 0:00:18]}  Ra1 {[%clk 0:01:11]} 44. a6 {[%clk 0:00:17]}  Ke5 {[%clk 0:01:10]} 45. b4 {[%clk 0:00:16]}  Kd5 {[%clk 0:01:04]} 46. b5 {[%clk 0:00:15]}  e5 {[%clk 0:01:03]} 47. Rb7 {[%clk 0:00:15]}  Ra3 {[%clk 0:00:45]} 48. a7 {[%clk 0:00:14]}  f4 {[%clk 0:00:46]} 49. b6 {[%clk 0:00:14]}  Rxe3+ {[%clk 0:00:46]} 50. Kf2 {[%clk 0:00:14]}  Ra3 {[%clk 0:00:46]} 51. Rb8 {[%clk 0:00:13]}  Ra2+ {[%clk 0:00:44]} 52. Kf3 {[%clk 0:00:11]}  Ra3+ {[%clk 0:00:44]} 53. Kg4 {[%clk 0:00:11]}  f3 {[%clk 0:00:28]} 54. Kg3 {[%clk 0:00:11]}  Kc6 {[%clk 0:00:14]} 55. a8=Q+ {[%clk 0:00:10]}  Rxa8 {[%clk 0:00:14]} 56. Rxa8 {[%clk 0:00:11]}  e4 {[%clk 0:00:11]} 57. Re8 {[%clk 0:00:10]} 1-0


[Site "https://www.chess.com"]